fUST/lending_fUST_20250729
["ID","MTS","AMOUNT","RATE_DAILY","PERIOD"]
[375699861,1753719054439,-12634.73134317,0.00020907,3]
[375699863,1753719054450,-250.0,0.00020949,2]
[375699865,1753719054460,-151.0,0.00021,3]
[375699867,1753719054469,-260.0,0.00021001,2]
[375699869,1753719054478,-522.08128294,0.00021068,2]
[375699871,1753719054488,-500.0,0.00021068,2]
[375699873,1753719054497,-919.70348114,0.00021068,2]
[375699875,1753719054506,-500.0,0.00021068,2]
[375699877,1753719054516,-2975.55,0.00021095,2]
[375699879,1753719054525,-460.0,0.00021095,2]
[375699881,1753719054534,-716.46,0.00021095,2]
[375699883,1753719054544,-864.59,0.00021095,2]
[375699885,1753719054553,-460.0,0.00021095,2]
[375699887,1753719054562,-460.0,0.00021095,2]
[375699889,1753719054571,-460.0,0.00021095,2]
[375699891,1753719054581,-460.0,0.00021095,2]
[375699893,1753719054590,-542.27,0.00021095,2]
[375699895,1753719054599,-1537.75,0.00021095,2]
[375699897,1753719054609,-644.18,0.00021095,2]
[375699899,1753719054619,-602.55,0.00021095,2]
[375699901,1753719054628,-460.0,0.00021095,2]
[375699903,1753719054638,-460.0,0.00021095,2]
[375699905,1753719054647,-460.0,0.00021095,2]
[375699907,1753719054656,-711.49,0.00021095,2]
[375699909,1753719054666,-460.0,0.00021095,2]
[375699911,1753719054675,-579.21818815,0.00021095,2]
[375699913,1753719054685,-2059.23,0.00021095,2]
[375699915,1753719054696,-1416.42,0.00021095,2]
[375699917,1753719054706,-460.0,0.00021095,2]
[375699919,1753719054716,-460.0,0.00021095,2]
[375699921,1753719054726,-460.0,0.00021095,2]
[375699923,1753719054736,-460.0,0.00021095,2]
[375699925,1753719054746,-460.0,0.00021095,2]
[375699927,1753719054756,-460.0,0.00021095,2]
[375699929,1753719054766,-460.0,0.00021095,2]
[375699931,1753719054775,-460.0,0.00021095,2]
[375699933,1753719054784,-460.0,0.00021095,2]
[375699935,1753719054794,-460.0,0.00021095,2]
[375699937,1753719054803,-709.77,0.00021095,2]
[375699939,1753719054812,-703.63,0.00021095,2]
[375699941,1753719054822,-496.55,0.00021095,2]
[375699943,1753719054831,-460.0,0.00021095,2]
[375699945,1753719054841,-460.0,0.00021095,2]
[375699947,1753719054850,-822.77,0.00021095,2]
[375699949,1753719054860,-460.0,0.00021095,2]
[375699951,1753719054869,-1149.59,0.00021095,2]
[375699953,1753719054882,-460.0,0.00021095,2]
[375699955,1753719054891,-460.0,0.00021095,2]
[375699957,1753719054901,-460.0,0.00021095,2]
[375699959,1753719054910,-460.0,0.00021095,2]
[375699961,1753719054920,-3542.71,0.00021095,2]
[375699963,1753719054929,-460.0,0.00021095,2]
[375699965,1753719054939,-460.0,0.00021095,2]
[375699967,1753719054953,-694.54,0.00021095,2]
[375699969,1753719054962,-460.0,0.00021095,2]
[375699971,1753719054971,-460.0,0.00021095,2]
[375699973,1753719054982,-460.0,0.00021095,2]
[375699975,1753719054992,-460.0,0.00021095,2]
[375699977,1753719055002,-464.39608282,0.00021095,2]
[375699979,1753719055013,-589.54,0.00021095,2]
[375699981,1753719055023,-685.78,0.00021095,2]
[375699983,1753719055033,-754.28,0.00021095,2]
[375699985,1753719055043,-380.83320129,0.00021095,2]
[375699987,1753719055052,-2793.82,0.00021095,2]
[375699989,1753719055061,-460.0,0.00021095,2]
[375699991,1753719055071,-2321.2,0.00021095,2]
[375699993,1753719055081,-659.81,0.00021095,2]
[375699994,1753719055090,-614.85,0.00021095,2]
[375699996,1753719055100,-462.86,0.00021095,2]
[375699998,1753719055109,-460.0,0.00021095,2]
[375700000,1753719055119,-460.0,0.00021095,2]
[375700002,1753719055129,-497.54,0.00021095,2]
[375700004,1753719055138,-460.0,0.00021095,2]
[375700005,1753719055147,-460.0,0.00021095,2]
[375700006,1753719055158,-460.0,0.00021095,2]
[375700007,1753719055168,-460.0,0.00021095,2]
[375700008,1753719055177,-561.0,0.00021095,2]
[375700009,1753719055186,-482.02,0.00021095,2]
[375700010,1753719055197,-2427.8,0.00021095,2]
[375700011,1753719055208,-706.45,0.00021095,2]
[375700012,1753719055218,-460.0,0.00021095,2]
[375700013,1753719055227,-1151.31,0.00021095,2]
[375700014,1753719055240,-1734.54,0.00021095,2]
[375700015,1753719055252,-474.97,0.00021095,2]
[375700016,1753719055262,-460.0,0.00021095,2]
[375700018,1753719055272,-460.0,0.00021095,2]
[375700019,1753719055282,-1625.52,0.00021095,2]
[375700021,1753719055299,-460.0,0.00021095,2]
[375700023,1753719055312,-460.0,0.00021095,2]
[375700025,1753719055321,-460.0,0.00021095,2]
[375700027,1753719055330,-1360.12,0.00021095,2]
[375700029,1753719055340,-460.0,0.00021095,2]
[375700031,1753719055350,-460.0,0.00021095,2]
[375700033,1753719055359,-460.0,0.00021095,2]
[375700035,1753719055368,-2000.0,0.00021116,2]
[375700037,1753719055377,-1000.0,0.00021116,2]
[375700039,1753719055386,-171.39485667,0.00021116,2]
[375700041,1753719055395,-1626.91030039,0.00021122,2]
[375700043,1753719055404,-296.57187402,0.00021128,2]
[375700045,1753719055414,-151.0,0.00021134,2]
[375700047,1753719055423,-151.0,0.00021134,2]
[375700049,1753719055432,-151.0,0.00021134,2]
[375700051,1753719055441,-151.0,0.00021134,2]
[375700053,1753719055452,-151.0,0.00021134,2]
[375700055,1753719055461,-151.0,0.00021134,2]
[375700057,1753719055470,-151.0,0.00021134,2]
[375700059,1753719055479,-204.18579203,0.00021134,2]
[375700061,1753719055489,-500.0,0.00021134,2]
[375700063,1753719055498,-500.0,0.00021134,2]
[375700065,1753719055507,-500.0,0.00021134,2]
[375700067,1753719055516,-500.0,0.00021134,2]
[375700069,1753719055525,-500.0,0.00021134,2]
[375700071,1753719055534,-500.0,0.00021134,2]
[375700073,1753719055543,-500.0,0.00021134,2]
[375700075,1753719055553,-500.0,0.00021134,2]
[375700076,1753719055563,-500.0,0.00021134,2]
[375700079,1753719055573,-500.0,0.00021134,2]
[375700081,1753719055584,-436.57380964,0.00021134,2]
[375700083,1753719055593,-430.064903,0.00021143,2]
[375700085,1753719055602,-430.064903,0.00021149,2]
[375700086,1753719055611,-31582.0,0.000212,2]
[375700088,1753719055621,-3578.97418049,0.00021223,2]
[375700090,1753719055630,-1036.5,0.0002127,4]
[375700092,1753719055639,-10000.0,0.00021274,2]
[375700094,1753719055649,-501.72606197,0.00021294,2]
[375700096,1753719055658,-151.0,0.000213,3]
[375700098,1753719055667,-151.0,0.000213,4]
[375700100,1753719055676,-2124.0,0.00021325,2]
[375700102,1753719055685,-2975.55,0.00021369,2]
[375700104,1753719055696,-330.54930808,0.00021369,2]
[375700106,1753719055705,-716.46,0.00021369,2]
[375700108,1753719055715,-864.59,0.00021369,2]
[375700110,1753719055724,-460.0,0.00021369,2]
[375700112,1753719055734,-460.0,0.00021369,2]
[375700114,1753719055744,-460.0,0.00021369,2]
[375700116,1753719055753,-460.0,0.00021369,2]
[375700118,1753719055763,-542.27,0.00021369,2]
[375700120,1753719055772,-1537.75,0.00021369,2]
[375700122,1753719055782,-644.18,0.00021369,2]
[375700124,1753719055791,-602.55,0.00021369,2]
[375700126,1753719055803,-460.0,0.00021369,2]
[375700128,1753719055818,-460.0,0.00021369,2]
[375700130,1753719055828,-460.0,0.00021369,2]
[375700132,1753719055837,-711.49,0.00021369,2]
[375700134,1753719055847,-460.0,0.00021369,2]
[375700136,1753719055859,-2059.23,0.00021369,2]
[375700138,1753719055869,-1416.42,0.00021369,2]
[375700140,1753719055879,-460.0,0.00021369,2]
[375700142,1753719055889,-460.0,0.00021369,2]
[375700144,1753719055899,-460.0,0.00021369,2]
[375700146,1753719055908,-460.0,0.00021369,2]
[375700148,1753719055919,-460.0,0.00021369,2]
[375700150,1753719055929,-460.0,0.00021369,2]
[375700152,1753719055938,-460.0,0.00021369,2]
[375700154,1753719055950,-709.77,0.00021369,2]
[375700156,1753719055959,-703.63,0.00021369,2]
[375700158,1753719055969,-496.55,0.00021369,2]
[375700160,1753719055978,-460.0,0.00021369,2]
[375700162,1753719055988,-460.0,0.00021369,2]
[375700164,1753719055997,-822.77,0.00021369,2]
[375700166,1753719056007,-228.61872276,0.00021369,2]
[375700168,1753719056017,-1149.59,0.00021369,2]
[375700169,1753719056026,-460.0,0.00021369,2]
[375700172,1753719056036,-460.0,0.00021369,2]
[375700173,1753719056045,-460.0,0.00021369,2]
[375700175,1753719056055,-460.0,0.00021369,2]
[375700177,1753719056064,-3542.71,0.00021369,2]
[375700179,1753719056073,-460.0,0.00021369,2]
[375700181,1753719056083,-460.0,0.00021369,2]
[375700183,1753719056093,-694.54,0.00021369,2]
[375700185,1753719056102,-460.0,0.00021369,2]
[375700187,1753719056111,-460.0,0.00021369,2]
[375700189,1753719056122,-460.0,0.00021369,2]
[375700191,1753719056132,-589.54,0.00021369,2]
[375700193,1753719056141,-685.78,0.00021369,2]
[375700195,1753719056151,-754.28,0.00021369,2]
[375700197,1753719056170,-2793.82,0.00021369,2]
[375700199,1753719056182,-460.0,0.00021369,2]
[375700201,1753719056191,-2321.2,0.00021369,2]
[375700203,1753719056204,-659.81,0.00021369,2]
[375700205,1753719056214,-614.85,0.00021369,2]
[375700207,1753719056223,-462.86,0.00021369,2]
[375700209,1753719056233,-460.0,0.00021369,2]
[375700211,1753719056242,-542.47,0.00021369,2]
[375700213,1753719056251,-497.54,0.00021369,2]
[375700215,1753719056261,-460.0,0.00021369,2]
[375700217,1753719056270,-194.94665866,0.00021369,2]
[375700219,1753719056279,-561.0,0.00021369,2]
[375700221,1753719056289,-482.02,0.00021369,2]
[375700223,1753719056298,-2427.8,0.00021369,2]
[375700225,1753719056307,-706.45,0.00021369,2]
[375700226,1753719056316,-460.0,0.00021369,2]
[375700228,1753719056325,-1151.31,0.00021369,2]
[375700230,1753719056334,-474.97,0.00021369,2]
[375700232,1753719056343,-1734.54,0.00021369,2]
[375700234,1753719056353,-460.0,0.00021369,2]
[375700236,1753719056363,-460.0,0.00021369,2]
[375700238,1753719056372,-460.0,0.00021369,2]
[375700240,1753719056382,-1625.52,0.00021369,2]
[375700242,1753719056391,-460.0,0.00021369,2]
[375700244,1753719056400,-460.0,0.00021369,2]
[375700246,1753719056410,-1360.12,0.00021369,2]
[375700248,1753719056420,-460.0,0.00021369,2]
[375700250,1753719056429,-460.0,0.00021369,2]
[375700252,1753719056439,-204.80719875,0.00021369,2]
[375700254,1753719056450,-500.0,0.0002137,2]
[375700256,1753719056460,-151.0,0.0002137,2]
[375700258,1753719056469,-151.0,0.0002137,2]
[375700260,1753719056479,-151.0,0.0002137,2]
[375700262,1753719056488,-152.98419651,0.0002137,2]
[375700275,1753719056611,-151.0,0.0002137,2]
[375700277,1753719056622,-151.28167398,0.0002137,2]
[375700279,1753719056632,-151.0,0.0002137,2]
[375700281,1753719056641,-151.0,0.0002137,2]
[375700283,1753719056650,-151.92336044,0.0002137,2]
[375700285,1753719056659,-151.0,0.0002137,2]
[375700287,1753719056669,-151.0,0.0002137,2]
[375700289,1753719056678,-151.0,0.0002137,2]
[375700291,1753719056687,-608.0,0.0002137,2]
[375700293,1753719056699,-166.95873073,0.0002137,2]
[375700295,1753719056709,-151.0,0.0002137,2]
[375700297,1753719056719,-151.0,0.0002137,2]
[375700299,1753719056728,-151.0,0.0002137,2]
[375700301,1753719056738,-151.0,0.0002137,2]
[375700303,1753719056748,-151.0,0.0002137,2]
[375700305,1753719056757,-151.0,0.0002137,2]
[375700307,1753719056767,-151.0,0.0002137,2]
[375700309,1753719056777,-151.0,0.0002137,2]
[375700311,1753719056788,-396.31837,0.00021371,2]
[375700313,1753719056798,-651.32066704,0.00021371,2]
[375700315,1753719056808,-48840.67077803,0.00021373,2]
[375700317,1753719056818,-1272.12733381,0.000214,2]
[375700319,1753719056828,-3783.73655168,0.000214,2]
[375700321,1753719056838,-500.0,0.00021473,2]
[375700323,1753719056848,-200.0,0.00021474,15]
[375700325,1753719056857,-200.0,0.00021474,15]
[375700327,1753719056867,-200.0,0.00021474,15]
[375700329,1753719056876,-200.0,0.00021474,15]
[375700331,1753719056886,-320.0,0.00021474,15]
[375700333,1753719056895,-2005.94100931,0.0002148,3]
[375700335,1753719056905,-199535.78709701,0.000215,2]
[375700352,1753719057062,-312.99338703,0.00019178,2]
[375700354,1753719057075,-150.39145135,0.00019178,2]
[375700356,1753719057085,-33603.68204578,0.000215,2]
[375700362,1753719057133,-183.79375977,0.00019178,2]
[375700364,1753719057143,-460.0,0.00019178,2]
[375700366,1753719057153,-460.0,0.00019452,2]
[375700368,1753719057165,-3015.40694093,0.000215,2]
[375700370,1753719057175,-1802.21297384,0.000215,2]
[375700372,1753719057186,-7984.33891788,0.000215,2]
[375700374,1753719057201,-870.0,0.000215,2]
[375700379,1753719057241,116.0404619,0.000189,2]
[375700382,1753719057256,-33.9595381,0.000189,2]
[375700384,1753719057266,-387.96864643,0.000215,2]
[375700402,1753719057490,-995.63460715,0.000215,2]
[375700403,1753719057503,-504.9568626,0.000215,2]
[375700404,1753719057512,-6285.83823733,0.000215,2]
[375703434,1753719612585,161.86431,0.00013699,2]
[375703446,1753720030152,-3976.2247817,0.00018711,2]
[375703447,1753720030175,-196.12848794,0.000189,2]
[375703448,1753720042089,-178.87151206,0.000189,2]
[375703449,1753720042112,-302.54622906,0.000189,2]
[375703450,1753720042133,-408.87104472,0.00019076,2]
[375703451,1753720042156,-236.11924081,0.00019077,2]
[375703452,1753720059084,1000.0,0.00023,30]
[375703490,1753720231916,-445.76364014,0.00019076,2]
[375703491,1753720231926,-272.58069648,0.00019077,2]
[375703492,1753720231936,-272.58069646,0.00019078,2]
[375703493,1753720231946,-272.58069646,0.00019078,2]
[375703494,1753720231956,-302.54622906,0.00019089,2]
[375703495,1753720231965,-1200.0,0.00019175,2]
[375703496,1753720231975,-300.0,0.00019176,2]
[375703497,1753720231984,-147.89959897,0.00019176,2]
[375703498,1753720231996,-152.10040103,0.00019176,2]
[375703499,1753720232006,-228.30671433,0.00019176,2]
[375703528,1753720237962,-71.69328567,0.00019176,2]
[375703530,1753720237971,-300.0,0.00019176,2]
[375703532,1753720237981,-300.0,0.00019176,2]
[375703535,1753720237991,-500.0,0.00019177,2]
[375703536,1753720238001,-11530.89144243,0.00019177,2]
[375703539,1753720238012,-7870.45010541,0.00019177,2]
[375703541,1753720238024,-773.6700976,0.00019177,2]
[375703545,1753720238049,-12625.85110906,0.00019177,2]
[375703547,1753720238059,-500.0,0.00019177,2]
[375703549,1753720238068,-500.0,0.00019177,2]
[375703551,1753720238078,-500.0,0.00019177,2]
[375703553,1753720238088,-500.0,0.00019177,2]
[375703555,1753720238097,-502.65015297,0.00019177,2]
[375703557,1753720238107,-500.0,0.00019177,2]
[375703559,1753720238117,-500.0,0.00019177,2]
[375703561,1753720238127,-500.0,0.00019177,2]
[375703563,1753720238136,-500.0,0.00019177,2]
[375703565,1753720238147,-500.0,0.00019177,2]
[375703567,1753720238156,-500.0,0.00019177,2]
[375703569,1753720238166,-500.0,0.00019177,2]
[375703571,1753720238176,-500.0,0.00019177,2]
[375703573,1753720238185,-500.0,0.00019177,2]
[375703575,1753720238195,-500.0,0.00019177,2]
[375703577,1753720238204,-500.0,0.00019177,2]
[375703579,1753720238214,-500.0,0.00019177,2]
[375703581,1753720238223,-500.0,0.00019177,2]
[375703583,1753720238233,-500.0,0.00019177,2]
[375703585,1753720238243,-381.14558868,0.00019177,2]
[375703587,1753720238252,-500.0,0.00019177,2]
[375703589,1753720238261,-500.0,0.00019177,2]
[375703591,1753720238270,-500.0,0.00019177,2]
[375703593,1753720238280,-500.0,0.00019177,2]
[375703595,1753720238290,-474.9111087,0.00019177,2]
[375703597,1753720238299,-500.0,0.00019177,2]
[375703599,1753720238309,-500.0,0.00019177,2]
[375703601,1753720238318,-500.0,0.00019177,2]
[375703603,1753720238328,-500.0,0.00019177,2]
[375703605,1753720238337,-500.0,0.00019177,2]
[375703607,1753720238347,-500.0,0.00019177,2]
[375703609,1753720238356,-500.0,0.00019177,2]
[375703611,1753720238366,-500.0,0.00019177,2]
[375703613,1753720238375,-500.0,0.00019177,2]
[375703615,1753720238385,-500.0,0.00019177,2]
[375703617,1753720238395,-500.0,0.00019177,2]
[375703619,1753720238405,-500.0,0.00019177,2]
[375703621,1753720238420,-350.0,0.00019177,2]
[375703623,1753720238430,-500.0,0.00019177,2]
[375703625,1753720238440,-500.0,0.00019177,2]
[375703627,1753720238451,-500.0,0.00019177,2]
[375703629,1753720238461,-500.0,0.00019177,2]
[375703631,1753720238472,-500.0,0.00019177,2]
[375703633,1753720238482,-500.0,0.00019177,2]
[375703635,1753720238492,-500.0,0.00019177,2]
[375703637,1753720238505,-461.0,0.00019177,2]
[375703639,1753720238516,-500.0,0.00019177,2]
[375703641,1753720238527,-500.0,0.00019177,2]
[375703643,1753720238537,-500.0,0.00019177,2]
[375703645,1753720238547,-487.94385508,0.00019177,2]
[375703647,1753720238557,-500.0,0.00019177,2]
[375703649,1753720238566,-500.0,0.00019177,2]
[375703651,1753720238576,-500.0,0.00019177,2]
[375703653,1753720238587,-500.0,0.00019177,2]
[375703655,1753720238598,-500.0,0.00019177,2]
[375703657,1753720238607,-500.0,0.00019177,2]
[375703659,1753720238617,-500.0,0.00019177,2]
[375703662,1753720238628,-500.0,0.00019177,2]
[375703664,1753720238637,-500.0,0.00019177,2]
[375703666,1753720238646,-500.0,0.00019177,2]
[375703668,1753720238655,-500.0,0.00019177,2]
[375703670,1753720238667,-500.0,0.00019177,2]
[375703672,1753720238680,-460.0,0.00019178,2]
[375703674,1753720238690,-340.44842469,0.00019178,2]
[375703676,1753720238700,-155.48105206,0.00019178,2]
[375703678,1753720238710,-460.0,0.00019178,2]
[375703680,1753720238720,-471.77698235,0.00019178,2]
[375703682,1753720238730,-294.24620363,0.00019178,2]
[375703684,1753720238740,-460.0,0.00019178,2]
[375703686,1753720238749,-460.0,0.00019178,2]
[375703688,1753720238759,-2856.47,0.00019178,2]
[375703690,1753720238769,-460.0,0.00019178,2]
[375703692,1753720238779,-460.0,0.00019178,2]
[375703694,1753720238789,-460.0,0.00019178,2]
[375703696,1753720238799,-266.92263482,0.00019178,2]
[375703699,1753720238812,-193.07736518,0.00019178,2]
[375703701,1753720238822,-460.0,0.00019178,2]
[375703703,1753720238832,-24.39400509,0.00019178,2]
[375703705,1753720238845,-435.60599491,0.00019178,2]
[375703707,1753720238854,-460.0,0.00019178,2]
[375703709,1753720238865,-460.0,0.00019178,2]
[375703711,1753720238875,-460.0,0.00019178,2]
[375703713,1753720238884,-460.0,0.00019178,2]
[375703715,1753720238894,-460.0,0.00019178,2]
[375703717,1753720238904,-460.0,0.00019178,2]
[375703719,1753720238917,-460.0,0.00019178,2]
[375703721,1753720238928,-460.0,0.00019178,2]
[375703723,1753720238938,-460.0,0.00019178,2]
[375703725,1753720238949,-460.0,0.00019178,2]
[375703728,1753720238959,-462.81218085,0.00019178,2]
[375703730,1753720238969,-460.0,0.00019178,2]
[375703732,1753720238980,-415.59073771,0.00019178,2]
[375703734,1753720238990,-463.81796763,0.00019178,2]
[375703736,1753720239000,-1737.08,0.00019178,2]
[375703738,1753720239011,-434.86743427,0.00019178,2]
[375703740,1753720239020,-460.0,0.00019178,2]
[375703742,1753720239030,-460.0,0.00019178,2]
[375703744,1753720239040,-460.0,0.00019178,2]
[375703746,1753720239050,-460.0,0.00019178,2]
[375703748,1753720239059,-460.0,0.00019178,2]
[375703750,1753720239068,-460.0,0.00019178,2]
[375703752,1753720239079,-460.0,0.00019178,2]
[375703754,1753720239088,-460.0,0.00019178,2]
[375703756,1753720239098,-460.0,0.00019178,2]
[375703758,1753720239108,-460.0,0.00019178,2]
[375703760,1753720239118,-460.0,0.00019178,2]
[375703762,1753720239128,-460.0,0.00019178,2]
[375703764,1753720239140,-460.0,0.00019178,2]
[375703766,1753720239150,-460.0,0.00019178,2]
[375703768,1753720239161,-460.0,0.00019178,2]
[375703770,1753720239171,-460.0,0.00019178,2]
[375703772,1753720239180,-460.0,0.00019178,2]
[375703774,1753720239190,-460.0,0.00019178,2]
[375703776,1753720239200,-460.0,0.00019178,2]
[375703778,1753720239210,-463.58872839,0.00019178,2]
[375703780,1753720239220,-460.0,0.00019178,2]
[375703782,1753720239230,-460.0,0.00019178,2]
[375703784,1753720239240,-460.0,0.00019178,2]
[375703786,1753720239249,-460.0,0.00019178,2]
[375703788,1753720239259,-460.0,0.00019178,2]
[375703790,1753720239268,-460.85158182,0.00019178,2]
[375703792,1753720239278,-460.0,0.00019178,2]
[375703794,1753720239287,-460.0,0.00019178,2]
[375703796,1753720239296,-460.0,0.00019178,2]
[375703798,1753720239306,-460.0,0.00019178,2]
[375703800,1753720239317,-460.0,0.00019178,2]
[375703802,1753720239326,-526.70689679,0.00019178,2]
[375703804,1753720239335,-460.0,0.00019178,2]
[375703806,1753720239345,-460.0,0.00019178,2]
[375703808,1753720239355,-460.0,0.00019178,2]
[375703810,1753720239364,-460.0,0.00019178,2]
[375703812,1753720239374,-460.0,0.00019178,2]
[375703814,1753720239383,-462.99773497,0.00019178,2]
[375703816,1753720239393,-460.0,0.00019178,2]
[375703818,1753720239402,-460.0,0.00019178,2]
[375703820,1753720239413,-460.0,0.00019178,2]
[375703822,1753720239422,-460.0,0.00019178,2]
[375703825,1753720239432,-460.0,0.00019178,2]
[375703828,1753720239441,-460.0,0.00019178,2]
[375703831,1753720239451,-460.0,0.00019178,2]
[375703834,1753720239460,-460.0,0.00019178,2]
[375703837,1753720239470,-460.0,0.00019178,2]
[375703840,1753720239479,-460.0,0.00019178,2]
[375703843,1753720239489,-460.0,0.00019178,2]
[375703846,1753720239503,-460.0,0.00019178,2]
[375703849,1753720239515,-460.0,0.00019178,2]
[375703852,1753720239526,-460.0,0.00019178,2]
[375703855,1753720239536,-231.82,0.00019178,2]
[375703857,1753720239547,-460.0,0.00019178,2]
[375703860,1753720239557,-460.0,0.00019178,2]
[375703863,1753720239567,-460.0,0.00019178,2]
[375703866,1753720239578,-460.0,0.00019178,2]
[375703869,1753720239588,-460.0,0.00019178,2]
[375703872,1753720239598,-588.65,0.00019178,2]
[375703875,1753720239607,-460.0,0.00019178,2]
[375703878,1753720239617,-460.0,0.00019178,2]
[375703881,1753720239626,-460.0,0.00019178,2]
[375703884,1753720239635,-460.0,0.00019178,2]
[375703887,1753720239645,-460.0,0.00019178,2]
[375703890,1753720239654,-460.0,0.00019178,2]
[375703893,1753720239665,-460.0,0.00019178,2]
[375703896,1753720239675,-460.0,0.00019178,2]
[375703899,1753720239685,-460.0,0.00019178,2]
[375703902,1753720239694,-460.0,0.00019178,2]
[375703905,1753720239703,-381.90173859,0.00019178,2]
[375703908,1753720239713,-460.0,0.00019178,2]
[375703911,1753720239722,-460.0,0.00019178,2]
[375703914,1753720239732,-1396.84,0.00019178,2]
[375703917,1753720239741,-460.0,0.00019178,2]
[375703919,1753720239751,-461.77073188,0.00019178,2]
[375703921,1753720239761,-460.0,0.00019178,2]
[375703923,1753720239770,-576.43,0.00019178,2]
[375703925,1753720239779,-460.0,0.00019178,2]
[375703928,1753720239789,-460.0,0.00019178,2]
[375703931,1753720239798,-460.0,0.00019178,2]
[375703934,1753720239808,-163.23610895,0.00019178,2]
[375703937,1753720239817,-460.0,0.00019178,2]
[375703940,1753720239826,-1778.62,0.00019178,2]
[375703943,1753720239835,-460.0,0.00019178,2]
[375703946,1753720239845,-460.0,0.00019178,2]
[375703949,1753720239854,-460.0,0.00019178,2]
[375703952,1753720239865,-460.0,0.00019178,2]
[375703955,1753720239874,-460.0,0.00019178,2]
[375703958,1753720239883,-460.0,0.00019178,2]
[375703961,1753720239892,-460.0,0.00019178,2]
[375703964,1753720239902,-460.0,0.00019178,2]
[375703967,1753720239913,-460.0,0.00019178,2]
[375703969,1753720239923,-460.0,0.00019178,2]
[375703971,1753720239933,-460.0,0.00019178,2]
[375703973,1753720239943,-460.0,0.00019178,2]
[375703975,1753720239952,-460.0,0.00019178,2]
[375703977,1753720239962,-460.0,0.00019178,2]
[375703979,1753720239971,-460.0,0.00019178,2]
[375703981,1753720239981,-460.0,0.00019178,2]
[375704008,1753720240230,-460.0,0.00019178,2]
[375704011,1753720240241,-460.0,0.00019178,2]
[375704013,1753720240250,-460.0,0.00019178,2]
[375704015,1753720240260,-460.0,0.00019178,2]
[375704017,1753720240269,-460.0,0.00019178,2]
[375704019,1753720240278,-460.0,0.00019178,2]
[375704021,1753720240287,-460.0,0.00019178,2]
[375704022,1753720240297,-460.0,0.00019178,2]
[375704024,1753720240306,-603.3,0.00019178,2]
[375704027,1753720240316,-460.0,0.00019178,2]
[375704028,1753720240325,-460.0,0.00019178,2]
[375704030,1753720240334,-460.0,0.00019178,2]
[375704032,1753720240344,-460.0,0.00019178,2]
[375704034,1753720240354,-460.0,0.00019178,2]
[375704036,1753720240363,-460.0,0.00019178,2]
[375704038,1753720240373,-460.0,0.00019178,2]
[375704040,1753720240382,-460.0,0.00019178,2]
[375704042,1753720240392,-460.0,0.00019178,2]
[375704044,1753720240401,-460.0,0.00019178,2]
[375704046,1753720240413,-460.0,0.00019178,2]
[375704048,1753720240423,-460.0,0.00019178,2]
[375704050,1753720240432,-460.0,0.00019178,2]
[375704052,1753720240442,-460.0,0.00019178,2]